Cogmind - Beta 15 @@@ ROGUE MODE // 2025.06.08 @ 16:36:55 Player: randy Result: Destroyed by S-10 Pest with Light Assault Rifle Performance ------------- Evolutions (0) 0 Regions Visited (1) 200 Robots Destroyed (12) 60 Value Destroyed (383) 383 Prototype IDs (0) 0 Alien Tech Used (0) 0 Bonus (0) 0 TOTAL SCORE: 643 Bonus ------- None Cogmind --------- Core Integrity 0/250 Matter 246/300 Energy 160/160 System Corruption 0% Temperature Cool (0) Movement Walking (190) Ox1 Location -10/Materials Parts ------- > --- POWER (1) -------- Light Nuclear Core > --- PROPULSION (2) --- Aluminum Leg > --- UTILITY (2) ------ Targeting Computer Core Shielding > --- WEAPON (2) ------- Particle Gun Light Cannon > --- INVENTORY (5) ---- Heat Sink Improved Heat Sink Structural Scanner Beam Cannon Peak State ------------ > --- POWER ------------ Light Nuclear Core > --- PROPULSION ------- Aluminum Leg Wheel > --- UTILITY ---------- Improved Heat Sink Visual Processing Unit > --- WEAPON ----------- Particle Gun Beam Cannon > --- INVENTORY -------- Ion Engine Heat Sink Structural Scanner [Rating: 13] Favorites ----------- Power Light Ion Engine Engine Light Ion Engine Power Core Light Nuclear Core Propulsion Wheel Leg Aluminum Leg Wheel Wheel Hover Unit Hover Unit Utility Small Matter Pod Device Improved Heat Sink Storage Small Matter Pod Processor Visual Processing Unit Protection Core Shielding Weapon Medium Laser Energy Gun Medium Laser Energy Cannon Beam Cannon Ballistic Cannon Light Cannon Build | -11 -10 ------- Run | Yrd Mat Slots Evolved . | . . Power . | . . Propulsion . | . . Utility . | . . Weapon . | . . Parts Attached 22 | 8 14 Power 4 | 1 3 Engine 3 | 1 2 Core 1 | . 1 Reactor . | . . Propulsion 6 | 4 2 Treads . | . . Leg 2 | 2 . Wheel 3 | 2 1 Hover 1 | . 1 Flight . | . . Utility 6 | 1 5 Device 2 | . 2 Storage 1 | 1 . Processor 2 | . 2 Hackware . | . . Protection 1 | . 1 Artifact . | . . Weapon 6 | 2 4 Energy Gun 4 | 2 2 Energy Cannon 1 | . 1 Ballistic Gun . | . . Ballistic Cannon 1 | . 1 Launcher . | . . Special Weapon . | . . Impact Weapon . | . . Slashing Weapon . | . . Piercing Weapon . | . . Special Melee Weapon . | . . Unidentified Prototypes . | . . Parts Lost 6 | . 6 Power 1 | . 1 Propulsion 3 | . 3 Utility 1 | . 1 Weapon 1 | . 1 Highest Loss Streak 3 | . 3 To Critical Strikes . | . . Average Backups 3 | 3 4 Power . | . . Propulsion 1 | 2 . Utility 1 | . 1 Weapon . | . . Tool/Special . | . . Unused Backups 3 | . 3 Power . | . . Propulsion 1 | . 1 Utility 1 | . 1 Weapon 1 | . 1 Tool/Special . | . . Average Slot Usage (%) 85 | . 85 Engine 6 | . 6 Core 7 | . 7 Leg 9 | . 9 Wheel 6 | . 6 Device 3 | . 3 Storage 4 | . 4 Processor 12 | . 12 Protection 5 | . 5 Energy Gun 16 | . 16 Energy Cannon 8 | . 8 Ballistic Cannon 1 | . 1 Peak Build Rating 13 | 6 13 Average Rating 7 | 5 8 On Entrance 3 | . 6 Naked Turns . | . . Heaviest Build 13 | 8 13 Greatest Support 20 | 20 20 Greatest Overweight (x) 2 | . 2 Average Overweight (x) . | . . Largest Inventory Capacity 5 | 5 5 Average Capacity 5 | 5 5 Most Carried 5 | 5 5 Average Carried 3 | 3 3 Final Capacity 5 | 5 5 Final Carried 5 | 5 4 Class Distribution -------------------- 67% | Mutant 32% | Scavenger-Mutant Dominant Class ---------------- Mutant | -10/Materials Resources | -11 -10 ----------- Run | Yrd Mat Matter Collected 432 | 330 102 Remotely . | . . Salvage Created 475 | 62 413 Parts 29 | 3 26 Haulers Intercepted . | . . Recyclers Shooed . | . . Parts Field Recycled . | . . Retrieved Matter . | . . Parts Self-Destructed . | . . Prevented . | . . Kills | -11 -10 ------- Run | Yrd Mat Combat Hostiles Destroyed 10 | 1 9 Guns 1 | 1 . Cannons 9 | . 9 Classes Destroyed 3 | 2 1 Worker 1 | 1 . Watcher 1 | . 1 Grunt 10 | 1 9 Best Kill Streak 3 | 1 3 Combat Bots Only 3 | 1 3 Max Kills in Single Turn 1 | 1 1 Gunslinging . | . . Exploded . | . . Melee . | . . Uniques/NPCs Destroyed . | . . Combat | -11 -10 -------- Run | Yrd Mat Hostile Shots Fired 86 | 19 67 Missed 29 | 9 20 Hits 57 | 10 47 Projectile 57 | 10 47 Critical Strikes 1 | . 1 Damage Taken 668 | 112 556 Core 251 | 23 228 Absorbed by Shields . | . . Redirected to Shielding 3 | . 3 Core Remaining (%) 90 | 90 . Volleys Fired 51 | 14 37 Largest 2 | 2 2 Hottest 125 | 100 125 Shots Fired 83 | 28 55 Gun 56 | 28 28 Cannon 27 | . 27 Launcher . | . . Special . | . . Kinetic 6 | . 6 Thermal 77 | 28 49 Explosive . | . . Electromagnetic . | . . Robot Hit Streak 5 | 3 5 Robot Miss Streak 4 | 4 3 Penetration Max . | . . Secondary Targets . | . . Shots Hit Robots 41 | 10 31 Core Hits 18 | 3 15 Critical Kills . | . . Critical Parts Destroyed . | . . Critical Strikes 1 | . 1 Burn 1 | . 1 Melee Attacks . | . . Impact . | . . Slashing . | . . Piercing . | . . Sneak Attacks . | . . Combat Hostiles . | . . Follow-up Attacks . | . . Damage Inflicted 606 | 138 468 Guns 330 | 138 192 Cannons 276 | . 276 Explosions . | . . Melee . | . . Ramming . | . . Kinetic 31 | . 31 Thermal 575 | 138 437 Explosive . | . . Electromagnetic . | . . Impact . | . . Slashing . | . . Piercing . | . . Highest Corruption . | . . Average Corruption . | . . Corruption Purged . | . . Corruption Blocked . | . . Overload Shots . | . . Overflow Damage . | . . Projectiles . | . . Explosions . | . . Melee . | . . Knockbacks . | . . Impact . | . . Kinetic . | . . Secondary . | . . Self-Inflicted Damage . | . . Shots . | . . Rammed . | . . Targets Rammed . | . . Kicked . | . . Crushed . | . . Highest Temperature 510 | 276 510 Average Temperature 208 | 150 243 Received Heat Transfer 375 | 60 315 Effects 11 | 1 10 Shutdowns 3 | . 3 Energy Bleed 1 | 1 . Interference 3 | . 3 Short Circuit 2 | . 2 Damage (minor) 2 | . 2 Siege Activations . | . . Martial Activations . | . . Shielding Activations . | . . Robots Disrupted . | . . Combat Hostiles . | . . Robots Corrupted . | . . Combat Hostiles . | . . Parts Fried . | . . Impact Corruptions . | . . Robots Melted . | . . Combat Hostiles . | . . Parts Melted 2 | 1 1 Heat Transferred 1506 | 407 1099 Parts Sabotaged . | . . Parts Stolen . | . . Parts Stripped . | . . Power Chain Reactions . | . . Alert | -11 -10 ------- Run | Yrd Mat Maximum Alert Level . | . . Low Security (%) 100 | 100 100 Level 1 . | . . Level 2 . | . . Level 3 . | . . Level 4 . | . . Level 5 . | . . High Security . | . . Max Security . | . . Peak Influence 110 | 20 110 Initial . | . . Average 29 | 2 42 Influence Increases 333 | 25 308 Destroy 0b10 Robot/C 200 | 20 180 Destroy 0b10 Robot/NC 10 | 5 5 Destroy Leader 42 | . 42 Successful Hack 6 | . 6 Lose Combat Pursuer 75 | . 75 Influence Decreases 276 | 25 251 Time Decay 226 | 25 201 Lost Part 50 | . 50 Squads Dispatched 4 | . 4 Investigation 2 | . 2 Extermination . | . . Reinforcement 2 | . 2 Assault . | . . Garrison . | . . Intercept . | . . Searches Triggered . | . . Construction Impeded . | . . Haulers Reinforced . | . . Active Scanning Responses . | . . Cargo Convoy Interrupts . | . . Stealth | -11 -10 --------- Run | Yrd Mat Distress Signals . | . . Communications Jammed . | . . Distress Signals . | . . Times Spotted 20 | 1 19 Peak Tracking Total 7 | 1 7 Tactical Retreats 2 | . 2 Traps | -11 -10 ------- Run | Yrd Mat Traps Triggered 1 | . 1 Indirectly . | . . Trap Hack Attempts . | . . Triggered . | . . Disarmed . | . . Reprogrammed . | . . Reused . | . . Traps Extracted . | . . Installed . | . . Triggered . | . . Machines | -11 -10 ---------- Run | Yrd Mat Machines Disabled . | . . Max in Single Turn . | . . Machines Repaired . | . . Machines Dismantled . | . . Machines Sabotaged . | . . Overloaded Fab Kills . | . . Hacking | -11 -10 --------- Run | Yrd Mat Machines Accessed 3 | . 3 Terminals 3 | . 3 Fabricators . | . . Repair Stations . | . . Recycling Units . | . . Scanalyzers . | . . Garrison Access . | . . Total Hacks 11 | . 11 Successful 9 | . 9 Failed 2 | . 2 Catastrophic . | . . Database Lockouts . | . . Manual . | . . Terminals 11 | . 11 Fabricators . | . . Repair Stations . | . . Recycling Units . | . . Scanalyzers . | . . Garrison Access . | . . Terminal Hacks 9 | . 9 Record 8 | . 8 Alert Level 1 | . 1 Fabricator Hacks . | . . Repair Station Hacks . | . . Recycling Unit Hacks . | . . Scanalyzer . | . . Garrison Access Hacks . | . . Unauthorized Hacks . | . . Terminals . | . . Fabricators . | . . Repair Stations . | . . Recycling Units . | . . Scanalyzers . | . . Garrison Access . | . . Data Cores Recovered . | . . Used . | . . Hacking Detections 2 | . 2 Full Trace Events 2 | . 2 Feedback Events . | . . Feedback Blocked . | . . Robot Schematics Acquired . | . . Robots Built . | . . Authchips . | . . Time . | . . Total Robot Build Rating . | . . Part Schematics Acquired . | . . Parts Built . | . . Authchips . | . . Time . | . . Total Part Build Rating . | . . Parts Repaired . | . . Time . | . . Parts Recycled . | . . Recycled Matter . | . . Retrieved Matter . | . . Retrieved Components . | . . Parts Scanalyzed . | . . Part Schematics Acquired . | . . Parts Damaged . | . . Bothacking | -11 -10 ------------ Run | Yrd Mat Used RIF Installer . | . . Robots Hacked . | . . Non-combat . | . . Combat . | . . Robot Hacks Applied . | . . Relay Couplers Released . | . . Fabnet Peak Effective % . | . . Robots Rewired . | . . Allies Hacked . | . . Hacks Repelled . | . . Allies | -11 -10 -------- Run | Yrd Mat Total Allies . | . . Largest Group . | . . Highest-Rated Group . | . . Highest-Rated Ally . | . . Total Orders . | . . Ally Attacks . | . . Total Damage . | . . Kills . | . . Allies Corrupted . | . . Allies Melted . | . . Intel | -11 -10 ------- Run | Yrd Mat Active Infowar (turns) 282 | . 282 Optics 282 | . 282 Robot Analysis Total . | . . Derelict Logs Recovered . | . . Drone Launches . | . . Drone Recoveries . | . . Exploration | -11 -10 ------------- Run | Yrd Mat Turns Passed 893 | 285 608 Spaces Moved 540 | 247 293 Core 65 | 29 36 Treads . | . . Legs 191 | 4 187 Wheels 258 | 214 44 Hover 26 | . 26 Flight . | . . Fastest Speed 50 | 50 80 Average Speed 122 | 77 160 Slowest Speed 190 | 120 190 Overloaded Moves . | . . Propulsion Burnouts . | . . Robots Hopped . | . . Potential Cave-ins . | . . Cave-ins Triggered . | . . Exploration Rate (%) 25 | 9 41 Regions Visited 1 Branch Regions . Pre-discovered Areas . | . . Known Exits Taken . | . . Unknown Exits Taken 1 | 1 . Scrap Searched . | . . Spaces Dug . | . . Terrain Destroyed . | . . Melee . | . . Projectile . | . . AOE . | . . Terrain Rammed . | . . Walls Destroyed . | . . Machines Disabled . | . . Actions | -11 -10 --------- Run | Yrd Mat Total 689 | 313 376 Wait 37 | 33 4 Move 539 | 246 293 Hop . | . . Pick Up 24 | 11 13 Fast Attach 1 | . 1 Attach 16 | 7 9 Detach 2 | 1 1 Swap 10 | 1 9 Drop 9 | . 9 Fire 51 | 14 37 Melee . | . . Ram . | . . Kick . | . . Crush . | . . Escape Stasis . | . . Rewire . | . . Trap . | . . Miscellaneous . | . . Route ------- -11/Scrapyard -10/Materials (discovered 1 exit: [*Min]) History --------- Turn | Location | Event 3 | -11/Scrapyard | Met Revision 17 187 | -11/Scrapyard | Discovered new exit (range 8) 286 | -11/Scrapyard | Entered Materials 306 | -10/Materials | Build established: Mutant 430 | -10/Materials | Core integrity fell below 50% 465 | -10/Materials | Core integrity fell below 20% 518 | -10/Materials | Lost 3 parts (1p1u1w) 759 | -10/Materials | Discovered new exit (range 5) 894 | -10/Materials | Destroyed by S-10 Pest with Light Assault Rifle Last Messages --------------- Current Alert Level: Low Security EXIT=FOUND O-16 Technician: "IFF HANDSHAKE FAILED. SECURING TERMINAL." ALERT: Hostiles spotted, dispatching reinforcements to Terminal M003. [Achievement: Uninvited Guest] Dropped Ion Engine. Acquired Lgt. Cannon. Dropped Beam Cannon. O-16 Technician: "IFF HANDSHAKE FAILED. SECURING TERMINAL." ALERT: Hostiles spotted, dispatching reinforcements to Terminal M007. R-06 Scavenger collects Ion Engine. G-34 Mercenary destroyed. K-01 Serf collects debris. G-34 Mercenary destroyed. K-01 Serf collects debris. [Achievement: First Step to Greatness] Map ----- +----------------------------------------------------+ | ?????????????????????????????????????????????? | | ?????????????????????????????????????????????? | | ?????????????????????????????????????????????? | | ?????????????????????????????????????????????? | | ?????????????????????????????????????????????? | | ?????????????????????????????????????????????? | | ???????????????????????????????#?????????????? | | ???????????#?????????????????? #?????????????? | | ???????????# ????????????????? #?????????????? | | ???????????# ???????????????? +?????????????? | | ???????????# ########?????? #?????????????? | | ???????????# #?????? #?????????#???? | | ???????????? #?????? #?#????? #???? | | ??????????????? #?????? ? #### #????? | | ??????????????????# #######+## #????? | | ??????????????????# [k* +????? | | ??????????????????# [%##### # ???? | | ??????????????????# !!#???# #? ??? | | ??????????????????# #???# ####+######?? ?? | | ??????????????????# #???# #????????????#+# | | ??????????????????# #???# #????????????# # | | ??????????????????+ #???# #????????????# | | ??????????????????# #???# #????????????+ | | ??????????????????# #???# #????????????# | | ?????????????????## ##??# #????????????# | | ?????????????????# @ #??# #????????????# | | ?????????? "" #??# #########????# | | ???????# s s s T #??# # #????# | | ???????# #??# # ] """ #????# | | ???????? ####### #??# #* """ #????# | | ???????? ????????#######??# / """ #????# | | ??????????????????????????# # [ #????# | | ?????????????????????????## ############## | | ?????????????????????????# #?# """ ## | | ???????????????## ###### #?# "T" ## | | ???????? < " #?# # | | ???????????????## ### ## #?# # | | ??????????????????????# ## #?# + T | | ??????????????????????# ########?# """# | | ??????????????????????# #????????# """# | | ??????????????????????# ########## """#### | | ??????????????????????# + #??? | | ??????????????????????#####################??? | | ?????????????????????????????????????????????? | | ?????????????????????????????????????????????? | | ?????????????????????????????????????????????? | | ?????????????????????????????????????????????? | | | | | | | +----------------------------------------------------+ Best States ------------- Heat Dissipation 39 Energy Generation 14 Energy Capacity 250 Matter Stores 350 Matter Capacity 350 Sight Range 18 Terrain Scan Density 10 Core Shielding 20 Evasion (%) 50 Targeting Accuracy 5 Item Schematics ----------------- None Robot Schematics ------------------ None Fabricated ------------ Nothing Repaired ---------- Nothing Alien Tech Used ----------------- None Achievements -------------- First Step to Greatness One Hack Too Far Uninvited Guest Challenges ------------ None Game ------ Seed StrikeFactoryWings Manual? 0 Play Time 00:40:49 Cumulative 0.6 hours Start 2025.06.08 @ 15:19:08 End 2025.06.08 @ 16:36:55 Sessions 1 Manual Loads 0 Difficulty Rogue Special Mode None Game No. 1 Rogue 1 Adventurer 0 Explorer 0 Win Type - Total 0 Types 0/0/0/0/0/0/0/0/0/0 Lore% 0 Gallery% 1 Achievement% 1 Wizard Run 0 Options --------- Layout 1 ASCII 0 Keyboard 0 Movement Mouse Keybinds 0 Fullscreen 2 Font 32/SmallcapsGlow Map View 50x35 Zoom Use 0% Tactical HUD 0 Map Filters NONE Filters NONE Steam 1 RUN: cb55aa27-8929-45bc-84d8-ab598eb30867